bitfinex-derivatives/quotes_SOLF0:USTF0_20250106
["timestamp","ask_amount","ask_price","bid_price","bid_amount"]
[1736175345514,20.64605509,221.7,221.55,20.64605509]
[1736175346119,2.9648,221.74,221.62,2.2564]
[1736175346419,2.9648,221.74,221.59,20.64605509]
[1736175346621,2.2555,221.71,221.59,20.64605509]
[1736175346826,2.9648,221.74,221.59,20.64605509]
[1736175347318,2.9648,221.74,221.55,20.64605509]
[1736175347719,2.2554,221.73,221.66,2.256]
[1736175347924,4.08,221.72,221.66,2.256]
[1736175348226,4.08,221.72,221.59,20.64605509]
[1736175348624,7.0448,221.74,221.59,20.64605509]
[1736175348824,22.09455509,221.8,221.63,20.64605509]
[1736175349023,4.08,221.82,221.67,20.64605509]
[1736175349321,2.2549,221.78,221.72,2.2553]
[1736175349623,4.08,221.82,221.67,20.64605509]
[1736175349824,2.255,221.77,221.72,2.2554]
[1736175350024,4.08,221.82,221.63,20.64605509]
[1736175350520,20.64605509,221.8,221.63,20.64605509]
[1736175350723,20.64605509,221.8,221.69,2.2557]
[1736175351123,20.64605509,221.8,221.63,20.64605509]
[1736175351324,2.2551,221.76,221.63,20.64605509]
[1736175351822,2.2551,221.75,221.7,2.2556]
[1736175352022,20.64605509,221.8,221.63,20.64605509]
[1736175352322,2.2552,221.74,221.69,2.2557]
[1736175352923,2.2553,221.73,221.63,20.64605509]
[1736175353129,4.08,221.75,221.63,2.2562]
[1736175353330,7.0975,221.74,221.59,20.64605509]
[1736175354036,2.2558,221.69,221.63,2.2563]
[1736175354335,7.0975,221.74,221.59,20.64605509]
[1736175354526,2.2551,221.75,221.7,2.2555]
[1736175354730,4.08,221.77,221.7,2.2555]
[1736175354935,4.08,221.77,221.63,20.64605509]
[1736175355936,4.08,221.77,221.6,4.08]
[1736175356440,2.2556,221.7,221.65,2.2561]
[1736175358831,6.3356,221.7,221.59,20.64605509]
[1736175359338,6.3356,221.7,221.64,2.2561]
[1736175359540,4.08,221.7,221.63,20.64605509]
[1736175359939,2.9303,221.75,221.7,2.2556]
[1736175360139,2.9303,221.75,221.63,20.64605509]
[1736175360538,2.9303,221.75,221.59,20.64605509]
[1736175360739,2.2554,221.73,221.59,20.64605509]
[1736175360941,1.5076,221.79,221.73,2.2552]
[1736175361135,20.64605509,221.84,221.68,20.64605509]
[1736175361136,20.64605509,221.88,221.68,20.64605509]
[1736175361334,5.5695,221.87,221.72,20.64605509]
[1736175361639,4.08,221.86,221.72,20.64605509]
[1736175362539,4.08,221.86,221.76,2.255]
[1736175362736,4.08,221.86,221.72,20.64605509]
[1736175363141,4.08,221.86,221.77,2.2549]
[1736175363438,4.08,221.86,221.72,20.64605509]
[1736175363739,2.2542,221.85,221.78,2.2547]
[1736175364138,4.08,221.86,221.78,2.2547]
[1736175364339,2.2545,221.81,221.75,2.255]
[1736175364545,4.08,221.86,221.72,20.64605509]
[1736175364745,4.08,221.86,221.68,20.64605509]
[1736175365247,20.64605509,221.84,221.64,20.64605509]
[1736175365535,2.2552,221.74,221.64,20.64605509]
[1736175366042,2.2552,221.74,221.68,2.2557]
[1736175366337,4.08,221.77,221.6,20.64605509]
[1736175366539,4.3716,221.76,221.64,2.2562]
[1736175366737,2.2553,221.73,221.64,2.2562]
[1736175367040,4.3716,221.76,221.64,2.2562]
[1736175367241,4.3716,221.76,221.6,20.64605509]
[1736175367441,2.2558,221.68,221.63,2.2563]
[1736175367744,4.08,221.71,221.6,20.64605509]
[1736175368039,4.08,221.71,221.67,2.2559]
[1736175368242,4.08,221.71,221.6,20.64605509]
[1736175368438,4.08,221.71,221.65,2.256]
[1736175368638,4.08,221.71,221.64,20.64605509]
[1736175368937,20.64605509,221.84,221.64,20.64605509]
[1736175369140,5.4514,221.83,221.6,4.08]
[1736175369340,5.4514,221.83,221.64,20.64605509]
[1736175369341,20.64605509,221.79,221.64,20.64605509]
[1736175369541,2.2553,221.73,221.67,2.2559]
[1736175369739,2.2553,221.73,221.64,20.64605509]
[1736175369942,4.08,221.74,221.64,20.64605509]
[1736175371245,4.08,221.74,221.7,2.2555]
[1736175371846,6.3352,221.74,221.7,2.2555]
[1736175372049,6.3352,221.74,221.64,20.64605509]
[1736175372443,2.2555,221.71,221.67,2.2559]
[1736175372644,4.08,221.74,221.64,20.64605509]
[1736175373045,2.2554,221.72,221.64,20.64605509]
[1736175373244,4.08,221.74,221.64,20.64605509]
[1736175373750,3.94,221.77,221.64,20.64605509]
[1736175374748,2.2551,221.76,221.71,2.2554]
[1736175375249,3.94,221.79,221.75,2.255]
[1736175375543,1.3714,221.83,221.68,20.64605509]
[1736175375743,2.2546,221.8,221.76,2.255]
[1736175375949,20.64605509,221.91,221.74,20.64605509]
[1736175376149,3.94,221.9,221.74,20.64605509]
[1736175376852,3.94,221.9,221.79,2.2546]
[1736175377047,20.64605509,221.87,221.69,24.58605509]
[1736175377251,20.64605509,221.87,221.69,20.64605509]
[1736175377552,3.94,221.9,221.73,20.64605509]
[1736175377753,3.94,221.89,221.73,20.64605509]
[1736175377952,6.4663,221.92,221.85,2.254]
[1736175378153,3.94,221.91,221.85,2.254]
[1736175378451,2.2536,221.9,221.83,2.2542]
[1736175378753,3.94,221.91,221.77,20.64605509]
[1736175379549,2.2537,221.89,221.83,2.2542]
[1736175379748,3.94,221.91,221.77,20.64605509]
[1736175380157,5.3165,221.91,221.77,20.64605509]
[1736175380454,3.94,221.9,221.77,20.64605509]
[1736175380654,6.1936,221.9,221.83,2.2542]
[1736175380855,3.94,221.9,221.77,20.64605509]
[1736175381053,2.2539,221.88,221.8,2.2545]
[1736175381257,3.94,221.9,221.77,20.64605509]
[1736175381751,3.94,221.9,221.73,20.64605509]
[1736175382155,2.2542,221.84,221.73,20.64605509]
[1736175382356,2.7918,221.92,221.81,20.64605509]
[1736175382551,3.94,221.96,221.81,20.64605509]
[1736175382757,2.2534,221.92,221.85,2.254]
[1736175382953,2.2534,221.92,221.81,20.64605509]
[1736175383147,3.94,221.95,221.81,20.64605509]
[1736175383754,3.94,221.95,221.86,2.2539]
[1736175384152,3.94,221.95,221.81,20.64605509]
[1736175384461,3.94,221.95,221.84,2.2541]
[1736175384752,3.94,221.95,221.81,20.64605509]
[1736175384957,3.94,221.95,221.77,20.64605509]
[1736175385353,2.2538,221.88,221.82,2.2544]
[1736175385550,3.94,221.89,221.77,20.64605509]
[1736175385755,3.94,221.88,221.77,20.64605509]
[1736175386762,2.2541,221.85,221.79,2.2547]
[1736175387359,2.2541,221.85,221.8,2.2545]
[1736175387658,2.2541,221.85,221.77,20.64605509]
[1736175387858,3.94,221.88,221.73,20.64605509]
[1736175388555,24.58605509,221.88,221.69,20.64605509]
[1736175388956,2.2542,221.84,221.77,2.2548]
[1736175389161,3.94,221.84,221.73,20.64605509]
[1736175390160,2.2546,221.8,221.75,2.2551]
[1736175390360,3.94,221.84,221.69,20.64605509]
[1736175390759,2.2549,221.77,221.72,2.2554]
[1736175390965,3.94,221.84,221.65,20.64605509]
[1736175391162,3.94,221.84,221.74,20.64605509]
[1736175391466,2.2543,221.83,221.74,20.64605509]
[1736175391766,3.94,221.84,221.74,20.64605509]
[1736175392060,2.2545,221.81,221.76,2.255]
[1736175392462,2.2546,221.8,221.74,22.90115509]
[1736175392663,3.94,221.84,221.74,20.64605509]
[1736175393058,3.94,221.84,221.75,12.88431335]
[1736175393059,2.2545,221.81,221.75,12.88431335]
[1736175393266,2.2545,221.81,221.76,2.2549]
[1736175393461,3.94,221.84,221.75,12.88431335]
[1736175393667,2.2542,221.84,221.79,2.2546]
[1736175394171,2.2543,221.83,221.78,15.13901335]
[1736175394863,3.94,221.85,221.75,12.88431335]
[1736175395364,3.94,221.85,221.77,2.2549]
[1736175395365,2.2545,221.81,221.77,2.2549]
[1736175395968,2.2544,221.83,221.78,2.2548]
[1736175396373,3.94,221.85,221.75,12.88431335]
[1736175396566,3.94,221.85,221.79,2.2546]
[1736175396761,3.94,221.85,221.75,12.88431335]
[1736175397366,2.2543,221.83,221.78,2.2547]
[1736175397667,4.3232,221.91,221.81,12.88431335]
[1736175397865,2.2538,221.88,221.81,15.13871335]
[1736175398066,4.3232,221.91,221.81,12.88431335]
[1736175398563,2.2539,221.87,221.82,2.2544]
[1736175398768,4.3232,221.91,221.78,12.88431335]
[1736175399170,2.2539,221.87,221.81,2.2544]
[1736175399471,3.94,221.9,221.81,2.2544]
[1736175399664,2.2544,221.82,221.77,2.2549]
[1736175400064,16.82431335,221.9,221.69,3.94]
[1736175400270,16.82431335,221.9,221.77,12.88431335]
[1736175400470,3.94,221.9,221.77,12.88431335]
[1736175400666,3.94,221.9,221.8,12.88431335]
[1736175400868,2.2539,221.87,221.81,2.2545]
[1736175401063,16.82431335,221.9,221.77,12.88431335]
[1736175401366,2.2543,221.84,221.78,2.2547]
[1736175401563,2.2543,221.84,221.77,12.88431335]
[1736175401769,16.82431335,221.9,221.77,12.88431335]
[1736175401964,2.254,221.86,221.77,12.88431335]
[1736175402367,16.82431335,221.9,221.77,12.88431335]
[1736175402570,2.2542,221.84,221.77,12.88431335]
[1736175403168,3.94,221.9,221.8,12.88431335]
[1736175403369,51.58,222.05,221.8,12.88431335]
[1736175403572,12.88431335,221.97,221.87,2.2538]
[1736175403771,2.2535,221.91,221.83,12.88431335]
[1736175405176,12.88431335,222.0,221.86,12.88431335]
[1736175405376,3.76,221.99,221.86,12.88431335]
[1736175406178,2.2531,221.95,221.9,2.2535]
[1736175406377,3.76,221.99,221.85,12.88431335]
[1736175406576,5.155,221.99,221.85,12.88431335]
[1736175406883,2.2532,221.94,221.85,12.88431335]
[1736175407076,5.155,221.99,221.85,12.88431335]
[1736175407279,12.88431335,221.97,221.85,12.88431335]
[1736175407575,12.88431335,221.98,221.85,12.88431335]
[1736175408371,12.88431335,221.95,221.82,12.88431335]
[1736175408973,20.60148554,221.97,221.86,2.2539]
[1736175409272,20.60148554,221.97,221.79,20.60148554]
[1736175409472,20.60148554,221.97,221.75,26.65010011]
[1736175409678,20.60148554,221.92,221.75,20.60148554]
[1736175409879,5.1309,221.91,221.75,20.60148554]
[1736175410079,5.1309,221.91,221.79,20.60148554]
[1736175410681,7.3845,221.91,221.79,20.60148554]
[1736175411075,5.1309,221.91,221.79,20.60148554]
[1736175411278,3.76,221.91,221.79,20.60148554]
[1736175411677,3.76,221.91,221.76,20.60148554]
[1736175411678,3.76,221.91,221.85,2.254]
[1736175411980,3.76,221.96,221.83,20.60148554]
[1736175412177,3.76,221.96,221.78,3.76]
[1736175412383,2.2533,221.93,221.89,2.2536]
[1736175412581,2.2533,221.93,221.81,20.60148554]
[1736175412783,3.76,221.96,221.81,20.60148554]
[1736175414683,2.2532,221.94,221.81,20.60148554]
[1736175415079,2.2532,221.94,221.89,2.2536]
[1736175415288,2.2533,221.93,221.89,2.2536]
[1736175417181,2.2537,221.89,221.85,2.2541]
[1736175417384,2.2537,221.89,221.77,20.60148554]
[1736175417877,2.2533,221.93,221.81,20.60148554]
[1736175418285,3.7327,221.94,221.9,2.2535]
[1736175418482,1.4795,221.94,221.81,20.60148554]
[1736175419184,2.2533,221.93,221.84,2.2541]
[1736175419385,1.4795,221.94,221.77,20.60148554]
[1736175420887,3.76,221.96,221.84,20.60148554]
[1736175421884,2.253,221.96,221.91,2.2534]
[1736175422501,2.2532,221.94,221.84,20.60148554]
[1736175423100,3.76,221.97,221.84,20.60148554]
[1736175423101,2.2531,221.95,221.84,20.60148554]
[1736175423291,3.76,221.97,221.84,20.60148554]
[1736175423796,2.2532,221.94,221.9,2.2535]
[1736175424199,2.2532,221.94,221.84,20.60148554]
[1736175424200,20.60148554,222.03,221.84,20.60148554]
[1736175424402,21.97048554,222.03,221.95,2.253]
[1736175424592,21.97048554,222.03,221.84,20.60148554]
[1736175424800,2.2528,221.98,221.93,2.2532]
[1736175425100,3.76,222.02,221.84,20.60148554]
[1736175425504,20.60148554,221.99,221.8,20.60148554]
[1736175426197,20.60148554,221.99,221.78,6.05711497]
[1736175426198,20.60148554,221.99,221.84,20.60148554]
[1736175427502,3.76,222.02,221.84,20.60148554]
[1736175428003,2.253,221.96,221.91,2.2535]
[1736175428398,3.76,222.02,221.84,20.60148554]
[1736175428701,3.76,222.01,221.84,20.60148554]
[1736175429105,2.2529,221.97,221.93,2.2532]
[1736175429402,12.87008045,222.0,221.86,12.87008045]
[1736175429607,15.12268045,222.0,221.9,2.2535]
[1736175429904,3.76,222.02,221.92,12.87008045]
[1736175430100,6.0124,222.02,221.95,2.253]
[1736175430309,3.76,222.02,221.89,12.87008045]
[1736175430508,12.87008045,222.0,221.86,12.87008045]
[1736175430900,3.76,222.02,221.89,12.87008045]
[1736175431202,2.2526,222.0,221.94,2.2531]
[1736175431404,3.76,222.02,221.89,12.87008045]
[1736175432406,12.87008045,222.0,221.86,12.87008045]
[1736175432806,2.253,221.96,221.9,2.2535]
[1736175433109,3.66,221.95,221.83,12.87008045]
[1736175433299,3.66,221.94,221.83,12.87008045]
[1736175433905,2.2536,221.9,221.86,2.2539]
[1736175434106,12.87008045,221.91,221.77,12.87008045]
[1736175434702,4.3088,221.93,221.77,12.87008045]
[1736175435310,12.87008045,221.88,221.74,12.87008045]
[1736175435514,3.66,221.87,221.74,12.87008045]
[1736175436215,12.87008045,221.85,221.73,47.35695356]
[1736175436512,12.87008045,221.82,221.68,12.87008045]
[1736175436706,2.2548,221.79,221.73,2.2553]
[1736175436907,1.3763,221.84,221.74,12.87008045]
[1736175437107,1.3763,221.84,221.77,12.87008045]
[1736175437108,3.66,221.84,221.77,12.87008045]
[1736175437514,3.66,221.84,221.68,3.66]
[1736175437713,3.66,221.84,221.75,12.87008045]
[1736175438209,12.87008045,221.91,221.75,12.87008045]
[1736175438518,7.984,221.9,221.75,12.87008045]
[1736175438815,7.984,221.9,221.78,12.87008045]
[1736175439013,2.2539,221.87,221.82,2.2543]
[1736175439311,7.984,221.9,221.78,12.87008045]
[1736175439513,6.6077,221.9,221.78,12.87008045]
[1736175440113,2.2541,221.85,221.8,2.2545]
[1736175440415,6.6077,221.9,221.75,12.87008045]
[1736175440714,2.2539,221.87,221.82,2.2543]
[1736175440916,2.9477,221.9,221.78,12.87008045]
[1736175441113,1.373,221.93,221.78,12.87008045]
[1736175441114,3.66,221.89,221.78,12.87008045]
[1736175441313,3.66,221.89,221.88,2.2538]
[1736175441610,3.66,221.96,221.84,12.87008045]
[1736175442510,5.913,221.96,221.9,2.2535]
[1736175442817,5.913,221.96,221.84,12.87008045]
[1736175443015,3.66,221.96,221.84,12.87008045]
[1736175443215,3.66,221.96,221.81,12.87008045]
[1736175443517,12.87008045,221.94,221.81,12.87008045]
[1736175443717,2.2536,221.9,221.81,12.87008045]
[1736175443918,12.87008045,221.94,221.81,12.87008045]
[1736175444117,12.87008045,221.91,221.75,12.87008045]
[1736175444316,12.87008045,221.88,221.75,12.87008045]
[1736175444516,3.66,221.87,221.75,12.87008045]
[1736175444917,2.2541,221.85,221.78,2.2547]
[1736175445121,2.2541,221.85,221.75,12.87008045]
[1736175445614,3.66,221.87,221.75,12.87008045]
[1736175445926,3.66,221.87,221.69,9.71711497]
[1736175445927,12.87008045,221.85,221.72,12.87008045]
[1736175446417,15.12418045,221.85,221.72,12.87008045]
[1736175446618,2.2541,221.85,221.72,12.87008045]
[1736175446818,1.5101,221.86,221.72,12.87008045]
[1736175447120,1.5101,221.86,221.68,3.66]
[1736175447121,1.5101,221.86,221.78,2.2547]
[1736175447412,1.5101,221.86,221.7,20.61459374]
[1736175447617,3.7641,221.86,221.7,20.61459374]
[1736175447814,20.61459374,221.89,221.7,20.61459374]
[1736175448014,3.66,221.88,221.7,20.61459374]
[1736175448218,3.66,221.88,221.84,2.2541]
[1736175448419,3.66,221.88,221.74,20.61459374]
[1736175448914,6.5569,221.97,221.78,20.61459374]
[1736175449117,2.8969,221.97,221.82,20.61459374]
[1736175449316,1.5101,221.97,221.93,2.2532]
[1736175449513,1.5101,221.97,221.82,24.27459374]
[1736175449717,24.27459374,222.0,221.82,24.27459374]
[1736175449918,24.27459374,222.0,221.87,2.2538]
[1736175450125,26.52709374,222.0,221.82,24.27459374]
[1736175450421,22.86709374,222.0,221.82,24.27459374]
[1736175450620,1.4653,222.07,221.86,20.61459374]
[1736175450916,20.61459374,222.05,221.86,20.61459374]
[1736175451321,20.61459374,222.05,221.91,2.2534]
[1736175451322,2.2521,222.04,221.91,2.2534]
[1736175451517,24.27459374,222.05,221.89,3.66]
[1736175452321,20.61459374,222.05,221.89,3.66]
[1736175452515,1.4653,222.07,221.9,20.61459374]
[1736175453024,20.61459374,222.09,221.9,20.61459374]
[1736175453323,20.61459374,222.09,221.89,3.66]
[1736175454121,20.61459374,222.09,221.89,24.27459374]
[1736175454427,4.236,222.19,221.89,24.27459374]
[1736175454428,3.66,222.17,222.0,20.61459374]
[1736175454723,3.66,222.17,222.0,24.27459374]
[1736175454924,2.2512,222.14,222.08,2.2517]
[1736175455322,2.2515,222.1,222.04,2.2521]
[1736175455520,3.66,222.17,221.96,20.61459374]
[1736175455721,20.61459374,222.11,221.96,20.61459374]
[1736175456033,3.66,222.15,222.0,20.61459374]
[1736175456724,2.251,222.15,222.08,2.2517]
[1736175456922,2.251,222.15,222.0,20.61459374]
[1736175457223,2.251,222.15,222.07,2.2518]
[1736175457424,3.66,222.16,222.0,20.61459374]
[1736175457425,2.2514,222.12,222.0,20.61459374]
[1736175457624,2.2514,222.12,221.96,20.61459374]
[1736175457920,24.27459374,222.16,222.0,20.61459374]
[1736175458322,24.27459374,222.16,222.09,2.2515]
[1736175458523,24.27459374,222.16,222.0,20.61459374]
[1736175458825,4.236,222.19,222.08,20.61459374]
[1736175459023,20.61459374,222.27,222.08,20.61459374]
[1736175459226,3.66,222.26,222.08,20.61459374]
[1736175459431,3.66,222.25,222.17,2.2507]
[1736175459633,5.1657,222.25,222.08,20.61459374]
[1736175460025,5.1657,222.25,222.08,24.27459374]
[1736175460225,2.2502,222.24,222.13,2.2512]
[1736175460427,1.368,222.24,222.08,24.45459374]
[1736175460928,1.368,222.24,222.18,2.2506]
[1736175461319,1.368,222.24,222.08,24.45459374]
[1736175461320,1.368,222.24,222.19,2.2506]
[1736175461720,1.368,222.24,222.08,24.45459374]
[1736175462325,1.368,222.24,222.08,20.61459374]
[1736175462525,21.98259374,222.24,222.08,20.61459374]
[1736175462723,1.4334,222.23,222.05,4.04]
[1736175462929,2.2507,222.19,222.05,4.04]
[1736175463227,1.4334,222.23,222.05,4.04]
[1736175463529,20.61459374,222.2,222.0,4.04]
[1736175463827,20.61459374,222.2,221.98,24.65459374]
[1736175464033,20.61459374,222.16,221.98,20.61459374]
[1736175464223,5.4988,222.15,221.98,20.61459374]
[1736175464624,1.4588,222.15,221.98,20.61459374]
[1736175464824,1.4588,222.15,221.96,47.30302631]
[1736175465026,1.4588,222.15,221.97,20.61459374]
[1736175465226,20.61459374,222.14,221.97,20.61459374]
[1736175465532,1.4629,222.13,221.97,20.61459374]
[1736175465731,2.2517,222.09,222.02,2.2523]
[1736175466228,6.2914,222.12,221.96,47.30302631]
[1736175466735,2.2514,222.11,222.05,2.252]
[1736175467033,4.04,222.12,221.96,47.30302631]
[1736175467429,2.2517,222.09,222.01,2.2524]
[1736175467629,20.61459374,222.1,221.96,47.30302631]
[1736175468032,2.2521,222.05,221.96,47.30302631]
[1736175468229,5.4771,222.04,221.87,20.61459374]
[1736175468537,5.4771,222.04,221.79,61.93837054]
[1736175468538,20.61459374,222.02,221.83,20.61459374]
[1736175468831,20.61459374,221.98,221.83,20.61459374]
[1736175469035,1.4681,221.97,221.79,24.95408267]
[1736175469240,4.04,221.96,221.79,24.95408267]
[1736175469736,4.04,221.96,221.83,20.61459374]
[1736175470039,4.04,221.98,221.87,20.61459374]
[1736175470635,6.2928,221.98,221.83,20.61459374]
[1736175471040,4.04,221.98,221.92,2.2533]
[1736175471336,4.04,221.98,221.78,4.04]
[1736175471532,2.2532,221.94,221.86,2.254]
[1736175471737,2.2532,221.94,221.81,20.61459374]
[1736175472031,1.5032,221.93,221.81,20.61459374]
[1736175472236,1.5032,221.93,221.89,2.2536]
[1736175473033,1.5032,221.93,221.84,2.2541]
[1736175473239,1.5032,221.93,221.81,20.61459374]
[1736175473840,1.5032,221.93,221.77,20.61459374]
[1736175474336,1.5032,221.93,221.81,20.61459374]
[1736175474833,3.7565,221.93,221.77,20.61459374]
[1736175475139,22.11779374,221.93,221.81,2.2544]
[1736175475337,2.2537,221.89,221.77,20.61459374]
[1736175475541,4.04,221.88,221.73,20.61459374]
[1736175475838,2.2543,221.83,221.73,20.61459374]
[1736175476035,4.04,221.88,221.73,20.61459374]
[1736175477238,4.04,221.88,221.71,47.35760811]
[1736175477638,20.61459374,221.85,221.71,47.35760811]
[1736175478135,2.2547,221.79,221.69,2.2556]
[1736175478436,6.9967,221.78,221.57,6.07888161]
[1736175478641,20.61459374,221.69,221.57,6.07888161]
[1736175478938,4.04,221.68,221.52,6.07888161]
[1736175479139,2.2562,221.65,221.55,2.2571]
[1736175479338,4.04,221.64,221.52,6.07888161]
[1736175479940,4.04,221.64,221.42,6.07888161]
[1736175480339,20.61459374,221.62,221.56,2.257]
[1736175480542,4.04,221.64,221.42,6.07888161]
[1736175481044,20.61459374,221.62,221.43,20.61459374]
[1736175481350,4.04,221.64,221.43,20.61459374]
[1736175481539,1.5153,221.65,221.56,2.257]
[1736175481743,1.5153,221.65,221.47,20.61459374]
[1736175481946,1.5153,221.65,221.51,20.61459374]
[1736175482144,5.7753,221.65,221.51,20.61459374]
[1736175482646,5.7753,221.65,221.63,2.2563]
[1736175482846,2.8574,221.75,221.55,20.61459374]
[1736175483044,2.8574,221.75,221.59,20.61459374]
[1736175483045,4.26,221.74,221.59,20.61459374]
[1736175483250,4.26,221.74,221.54,20.61459374]
[1736175483446,4.26,221.74,221.58,20.61459374]
[1736175483642,4.26,221.74,221.7,2.2556]
[1736175484045,4.26,221.74,221.58,20.61459374]
[1736175484849,24.87459374,221.74,221.56,4.26]
[1736175485044,1.5168,221.73,221.67,2.2558]
[1736175485353,1.5168,221.73,221.54,20.61459374]
[1736175485354,20.61459374,221.7,221.54,20.61459374]
[1736175485550,20.61459374,221.7,221.45,4.5162]
[1736175485551,20.61459374,221.7,221.5,20.61459374]
[1736175485750,20.61459374,221.66,221.5,20.61459374]
[1736175485950,4.26,221.65,221.47,4.26]
[1736175486255,4.26,221.65,221.5,20.61459374]
[1736175486444,4.26,221.65,221.54,20.61459374]
[1736175486748,4.26,221.72,221.7,2.2556]
[1736175486943,4.26,221.72,221.48,4.26]
[1736175487151,20.61459374,221.66,221.48,4.26]
[1736175488344,20.61459374,221.66,221.46,20.61459374]
[1736175488345,20.61459374,221.66,221.46,24.87459374]
[1736175488748,20.61459374,221.66,221.46,20.61459374]
[1736175488954,22.87099374,221.62,221.55,2.257]
[1736175489265,4.26,221.61,221.55,2.257]
[1736175489561,7.0423,221.61,221.46,20.61459374]
[1736175489763,9.2988,221.61,221.46,20.61459374]
[1736175490063,10.7339,221.61,221.46,20.61459374]
[1736175490364,10.7339,221.61,221.54,2.2572]
[1736175490657,10.7339,221.61,221.46,20.61459374]
[1736175490858,8.4774,221.61,221.42,20.61459374]
[1736175491655,4.26,221.61,221.47,20.61459374]
[1736175492359,2.2563,221.63,221.47,20.61459374]
[1736175492559,4.26,221.62,221.47,20.61459374]
[1736175492761,4.26,221.62,221.51,2.2575]
[1736175492962,5.6803,221.62,221.47,20.61459374]
[1736175493261,7.9368,221.62,221.43,20.61459374]
[1736175493458,20.61459374,221.6,221.53,2.2573]
[1736175493765,5.6803,221.62,221.47,20.61459374]
[1736175494060,5.6803,221.62,221.43,20.61459374]
[1736175494252,5.6803,221.62,221.4,4.26]
[1736175494253,20.61459374,221.57,221.4,4.26]
[1736175494965,5.6803,221.62,221.43,20.61459374]
[1736175495464,5.6803,221.62,221.47,20.61459374]
[1736175496060,20.61459374,221.6,221.43,20.61459374]
[1736175496653,20.61459374,221.6,221.55,2.2571]
[1736175496861,20.61459374,221.6,221.43,20.61459374]
[1736175497067,1.4203,221.62,221.47,20.61459374]
[1736175497953,1.4203,221.62,221.56,2.2569]
[1736175498464,2.9167,221.67,221.43,20.61459374]
[1736175498661,20.61459374,221.65,221.47,20.61459374]
[1736175499465,2.2563,221.63,221.58,2.2568]
[1736175499762,4.26,221.63,221.58,2.2568]
[1736175499962,6.5163,221.63,221.58,2.2568]
[1736175500355,4.26,221.63,221.56,2.2569]
[1736175500566,20.61459374,221.61,221.45,4.26]
[1736175500954,2.2566,221.6,221.45,4.26]
[1736175501262,20.61459374,221.61,221.43,20.61459374]
[1736175501464,20.61459374,221.61,221.51,2.2575]
[1736175501764,2.2571,221.56,221.51,2.2575]
[1736175501958,4.26,221.55,221.48,2.2578]
[1736175502164,2.2573,221.53,221.48,2.2578]
[1736175502464,2.2573,221.53,221.39,20.61459374]
[1736175502665,2.2573,221.53,221.49,2.2577]
[1736175502861,5.6633,221.54,221.39,20.61459374]
[1736175503069,2.2574,221.52,221.39,20.61459374]
[1736175503257,5.6633,221.54,221.48,2.2578]
[1736175503456,20.61459374,221.52,221.38,4.34771109]
[1736175503770,2.2579,221.48,221.38,4.34771109]
[1736175503958,20.61459374,221.52,221.38,4.34771109]
[1736175504161,2.2577,221.5,221.38,4.34771109]
[1736175504462,20.61459374,221.52,221.38,4.34771109]
[1736175504657,13.55,221.85,221.42,20.61459374]
[1736175504973,20.61459374,221.66,221.46,20.61459374]
[1736175505365,20.61459374,221.62,221.56,2.257]
[1736175505661,4.26,221.62,221.46,20.61459374]
[1736175506169,24.87459374,221.62,221.46,20.61459374]
[1736175506465,2.2566,221.6,221.46,20.61459374]
[1736175506665,24.87459374,221.62,221.56,2.257]
[1736175506867,27.13109374,221.62,221.43,20.61459374]
[1736175507066,27.13109374,221.62,221.4,4.26]
[1736175507067,27.13109374,221.62,221.56,2.257]
[1736175507769,2.2565,221.61,221.56,2.257]
[1736175508165,20.61459374,221.66,221.47,20.61459374]
[1736175508371,4.26,221.65,221.47,20.61459374]
[1736175508671,2.2563,221.63,221.58,2.2568]
[1736175508973,20.61459374,221.62,221.47,20.61459374]
[1736175509870,2.2565,221.61,221.47,20.61459374]
[1736175510367,20.61459374,221.62,221.56,2.257]
[1736175510573,2.2566,221.6,221.56,2.257]